[Event "Titled Tuesday Blitz May 24 Early 2022"]
[White "Skuhala, Barbara"]
[Black "Jakubowska, Anna"]
[WhiteFideId "14605465"]
[BlackFideId "1121952"]
[WhiteElo "2155"]
[BlackElo "1878"]
[Result "1-0"]
[Round "11"]
[TimeControl "180+1"]
[Date "2022.05.25"]
[WhiteClock "0:00:54"]
[BlackClock "0:00:07"]

1. e4 {[%clk 0:03:00]}  Nf6 {[%clk 0:02:54]} 2. Nc3 {[%clk 0:02:59]}  d5 {[%clk 0:02:54]} 3. exd5 {[%clk 0:02:58]}  Nxd5 {[%clk 0:02:53]} 4. Nf3 {[%clk 0:02:56]}  Nxc3 {[%clk 0:02:52]} 5. bxc3 {[%clk 0:02:55]}  g6 {[%clk 0:02:51]} 6. d4 {[%clk 0:02:54]}  Bg7 {[%clk 0:02:51]} 7. Bd3 {[%clk 0:02:54]}  O-O {[%clk 0:02:51]} 8. O-O {[%clk 0:02:54]}  c5 {[%clk 0:02:51]} 9. Be3 {[%clk 0:02:53]}  Nc6 {[%clk 0:02:50]} 10. Re1 {[%clk 0:02:51]}  Bg4 {[%clk 0:02:48]} 11. Be2 {[%clk 0:02:46]}  cxd4 {[%clk 0:02:46]} 12. Nxd4 {[%clk 0:02:42]}  Bxe2 {[%clk 0:02:44]} 13. Rxe2 {[%clk 0:02:40]}  Qa5 {[%clk 0:02:28]} 14. Nxc6 {[%clk 0:02:36]}  bxc6 {[%clk 0:02:28]} 15. Bd4 {[%clk 0:02:36]}  e5 {[%clk 0:02:28]} 16. Be3 {[%clk 0:02:33]}  Qxc3 {[%clk 0:02:26]} 17. Rb1 {[%clk 0:02:33]}  Rfd8 {[%clk 0:02:25]} 18. Qf1 {[%clk 0:02:32]}  a5 {[%clk 0:02:10]} 19. Rb3 {[%clk 0:02:29]}  Qc4 {[%clk 0:02:05]} 20. Re1 {[%clk 0:02:21]}  Qxf1+ {[%clk 0:01:59]} 21. Kxf1 {[%clk 0:02:21]}  Rdb8 {[%clk 0:01:50]} 22. Reb1 {[%clk 0:02:20]}  Rxb3 {[%clk 0:01:47]} 23. Rxb3 {[%clk 0:02:20]}  e4 {[%clk 0:01:38]} 24. Ke2 {[%clk 0:02:19]}  Be5 {[%clk 0:01:22]} 25. Rb6 {[%clk 0:02:19]}  Rc8 {[%clk 0:01:20]} 26. Bd2 {[%clk 0:02:16]}  Kg7 {[%clk 0:01:00]} 27. Bxa5 {[%clk 0:02:12]}  Ra8 {[%clk 0:01:00]} 28. Bd2 {[%clk 0:02:11]}  Rxa2 {[%clk 0:00:58]} 29. Rxc6 {[%clk 0:02:10]}  f5 {[%clk 0:00:55]} 30. g3 {[%clk 0:02:10]}  h6 {[%clk 0:00:52]} 31. h4 {[%clk 0:02:07]}  h5 {[%clk 0:00:45]} 32. Bg5 {[%clk 0:02:04]}  Kf7 {[%clk 0:00:43]} 33. Rc5 {[%clk 0:02:01]}  Ke6 {[%clk 0:00:43]} 34. Rc6+ {[%clk 0:02:00]}  Kd5 {[%clk 0:00:38]} 35. Rc8 {[%clk 0:01:54]}  Bd6 {[%clk 0:00:33]} 36. Be3 {[%clk 0:01:51]}  Ra1 {[%clk 0:00:26]} 37. c4+ {[%clk 0:01:48]}  Ke6 {[%clk 0:00:25]} 38. c5 {[%clk 0:01:48]}  Be5 {[%clk 0:00:25]} 39. c6 {[%clk 0:01:44]}  Ra2+ {[%clk 0:00:23]} 40. Kf1 {[%clk 0:01:44]}  Rc2 {[%clk 0:00:23]} 41. Rg8 {[%clk 0:01:42]}  Kf7 {[%clk 0:00:22]} 42. Rc8 {[%clk 0:01:40]}  Ke6 {[%clk 0:00:21]} 43. Kg2 {[%clk 0:01:35]}  Kf7 {[%clk 0:00:08]} 44. Bb6 {[%clk 0:01:24]}  f4 {[%clk 0:00:08]} 45. gxf4 {[%clk 0:01:23]}  Bxf4 {[%clk 0:00:08]} 46. c7 {[%clk 0:01:24]}  e3 {[%clk 0:00:08]} 47. Kf3 {[%clk 0:01:19]}  Rxf2+ {[%clk 0:00:08]} 48. Ke4 {[%clk 0:01:16]}  Bxc7 {[%clk 0:00:07]} 49. Rxc7+ {[%clk 0:01:14]}  Kf6 {[%clk 0:00:08]} 50. Bxe3 {[%clk 0:01:14]}  Rh2 {[%clk 0:00:08]} 51. Bg5+ {[%clk 0:01:13]}  Ke6 {[%clk 0:00:08]} 52. Rc6+ {[%clk 0:01:12]}  Kf7 {[%clk 0:00:09]} 53. Kf4 {[%clk 0:01:11]}  Ra2 {[%clk 0:00:08]} 54. Rc7+ {[%clk 0:01:09]}  Kg8 {[%clk 0:00:08]} 55. Ke5 {[%clk 0:01:07]}  Ra5+ {[%clk 0:00:08]} 56. Ke6 {[%clk 0:01:07]}  Ra6+ {[%clk 0:00:08]} 57. Ke7 {[%clk 0:01:06]}  Kg7 {[%clk 0:00:08]} 58. Rd7 {[%clk 0:01:05]}  Rb6 {[%clk 0:00:08]} 59. Rd6 {[%clk 0:01:04]}  Rb7+ {[%clk 0:00:08]} 60. Ke6 {[%clk 0:01:03]}  Rb4 {[%clk 0:00:08]} 61. Rd7+ {[%clk 0:01:03]}  Kg8 {[%clk 0:00:09]} 62. Ke7 {[%clk 0:00:58]}  Re4+ {[%clk 0:00:08]} 63. Kf6 {[%clk 0:00:59]}  Rb4 {[%clk 0:00:07]} 64. Kxg6 {[%clk 0:00:58]}  Rb6+ {[%clk 0:00:08]} 65. Bf6 {[%clk 0:00:55]}  Rb8 {[%clk 0:00:09]} 66. Kxh5 {[%clk 0:00:56]}  Rb5+ {[%clk 0:00:07]} 67. Kg6 {[%clk 0:00:56]}  Rb8 {[%clk 0:00:07]} 68. h5 {[%clk 0:00:54]} 1-0


[Site "https://www.chess.com"]

[Event "Titled Tuesday Blitz May 24 Early 2022"]
[White "Taboas Rodriguez, Daniel"]
[Black "Fromm, Marius"]
[WhiteFideId "2208466"]
[BlackFideId "12993190"]
[WhiteElo "2429"]
[BlackElo "2544"]
[Result "1-0"]
[Round "11"]
[TimeControl "180+1"]
[Date "2022.05.25"]
[WhiteClock "0:01:05"]
[BlackClock "0:00:04"]

1. d4 {[%clk 0:03:00]}  Nf6 {[%clk 0:02:59]} 2. Nf3 {[%clk 0:03:01]}  d6 {[%clk 0:02:59]} 3. c4 {[%clk 0:03:02]}  g6 {[%clk 0:02:52]} 4. Nc3 {[%clk 0:03:03]}  Bg7 {[%clk 0:02:49]} 5. e4 {[%clk 0:03:03]}  O-O {[%clk 0:02:50]} 6. Be2 {[%clk 0:03:03]}  e5 {[%clk 0:02:49]} 7. dxe5 {[%clk 0:03:04]}  dxe5 {[%clk 0:02:49]} 8. Qxd8 {[%clk 0:03:05]}  Rxd8 {[%clk 0:02:49]} 9. Bg5 {[%clk 0:03:06]}  c6 {[%clk 0:02:42]} 10. Nxe5 {[%clk 0:03:05]}  Re8 {[%clk 0:02:41]} 11. O-O-O {[%clk 0:03:06]}  Nxe4 {[%clk 0:02:25]} 12. Nxe4 {[%clk 0:03:06]}  Bxe5 {[%clk 0:02:25]} 13. Nd6 {[%clk 0:03:03]}  Bxd6 {[%clk 0:02:24]} 14. Rxd6 {[%clk 0:03:04]}  Bf5 {[%clk 0:02:12]} 15. Be3 {[%clk 0:02:52]}  Nd7 {[%clk 0:02:01]} 16. Rhd1 {[%clk 0:02:51]}  Ne5 {[%clk 0:01:58]} 17. h3 {[%clk 0:02:47]}  h5 {[%clk 0:01:56]} 18. b3 {[%clk 0:02:47]}  a5 {[%clk 0:01:55]} 19. Kb2 {[%clk 0:02:47]}  Re6 {[%clk 0:01:43]} 20. Rd8+ {[%clk 0:02:44]}  Re8 {[%clk 0:01:43]} 21. Bb6 {[%clk 0:02:28]}  a4 {[%clk 0:01:23]} 22. bxa4 {[%clk 0:02:22]}  Nd7 {[%clk 0:01:02]} 23. Rxa8 {[%clk 0:02:00]}  Rxa8 {[%clk 0:01:00]} 24. a5 {[%clk 0:02:00]}  Be6 {[%clk 0:00:54]} 25. Bf3 {[%clk 0:01:37]}  Kf8 {[%clk 0:00:53]} 26. Kc3 {[%clk 0:01:28]}  Ke7 {[%clk 0:00:51]} 27. Bc7 {[%clk 0:01:24]}  Ke8 {[%clk 0:00:49]} 28. a4 {[%clk 0:01:22]}  Nc5 {[%clk 0:00:46]} 29. Bb6 {[%clk 0:01:06]}  Nxa4+ {[%clk 0:00:35]} 30. Kb4 {[%clk 0:01:06]}  Nb2 {[%clk 0:00:33]} 31. Rd4 {[%clk 0:01:06]}  Ke7 {[%clk 0:00:16]} 32. Be2 {[%clk 0:01:06]}  c5+ {[%clk 0:00:09]} 33. Bxc5+ {[%clk 0:01:06]}  Kf6 {[%clk 0:00:04]} 34. Rd2 {[%clk 0:01:05]} 1-0


[Site "https://www.chess.com"]

[Event "Titled Tuesday Blitz May 24 Early 2022"]
[White "Tarigan, Gilbert Elroy"]
[Black "Ianov, Viktor"]
[WhiteFideId "7108133"]
[BlackFideId "14102730"]
[WhiteElo "1908"]
[BlackElo "2152"]
[Result "1-0"]
[Round "11"]
[TimeControl "180+1"]
[Date "2022.05.24"]
[WhiteClock "0:00:10"]
[BlackClock "0:00:57"]

1. c3 {[%clk 0:03:00]}  d6 {[%clk 0:02:58]} 2. d4 {[%clk 0:02:59]}  g6 {[%clk 0:02:59]} 3. Nf3 {[%clk 0:02:54]}  Bg7 {[%clk 0:02:59]} 4. Bg5 {[%clk 0:02:51]}  Nf6 {[%clk 0:02:59]} 5. e3 {[%clk 0:02:51]}  O-O {[%clk 0:02:58]} 6. Nbd2 {[%clk 0:02:52]}  c5 {[%clk 0:02:58]} 7. Be2 {[%clk 0:02:49]}  Be6 {[%clk 0:02:58]} 8. O-O {[%clk 0:02:48]}  Qb6 {[%clk 0:02:58]} 9. Rb1 {[%clk 0:02:43]}  Bxa2 {[%clk 0:02:57]} 10. Nc4 {[%clk 0:02:36]}  Bxc4 {[%clk 0:02:53]} 11. Bxc4 {[%clk 0:02:37]}  Nc6 {[%clk 0:02:53]} 12. Qe2 {[%clk 0:02:25]}  Rad8 {[%clk 0:02:47]} 13. h3 {[%clk 0:02:21]}  d5 {[%clk 0:02:47]} 14. Bd3 {[%clk 0:02:20]}  a6 {[%clk 0:02:42]} 15. Bf4 {[%clk 0:02:16]}  Nd7 {[%clk 0:02:37]} 16. Bh2 {[%clk 0:02:14]}  e5 {[%clk 0:02:37]} 17. dxe5 {[%clk 0:02:13]}  Ndxe5 {[%clk 0:02:37]} 18. Bc2 {[%clk 0:02:11]}  Rfe8 {[%clk 0:02:35]} 19. Nxe5 {[%clk 0:02:05]}  Bxe5 {[%clk 0:02:32]} 20. Qf3 {[%clk 0:01:54]}  Bxh2+ {[%clk 0:02:29]} 21. Kxh2 {[%clk 0:01:55]}  d4 {[%clk 0:02:26]} 22. exd4 {[%clk 0:01:52]}  cxd4 {[%clk 0:02:26]} 23. Rfd1 {[%clk 0:01:39]}  Qc7+ {[%clk 0:02:20]} 24. Kg1 {[%clk 0:01:34]}  b5 {[%clk 0:02:15]} 25. Bb3 {[%clk 0:01:27]}  dxc3 {[%clk 0:02:01]} 26. bxc3 {[%clk 0:01:28]}  Na5 {[%clk 0:01:56]} 27. Bd5 {[%clk 0:01:24]}  Nc4 {[%clk 0:01:55]} 28. h4 {[%clk 0:01:11]}  Kg7 {[%clk 0:01:41]} 29. h5 {[%clk 0:01:09]}  Re7 {[%clk 0:01:30]} 30. Rd4 {[%clk 0:00:49]}  Ne5 {[%clk 0:01:21]} 31. h6+ {[%clk 0:00:47]}  Kxh6 {[%clk 0:01:09]} 32. Qf6 {[%clk 0:00:46]}  Qd7 {[%clk 0:00:57]} 33. Rh4# {[%clk 0:00:10]} 1-0


[Site "https://www.chess.com"]

[Event "Titled Tuesday Blitz May 24 Early 2022"]
[White "Timofeev, Artyom"]
[Black "Djokic, Mihailo"]
[WhiteFideId "4140419"]
[BlackFideId "976440"]
[WhiteElo "2594"]
[BlackElo "2202"]
[Result "1-0"]
[Round "11"]
[TimeControl "180+1"]
[Date "2022.05.24"]
[WhiteClock "0:00:28"]
[BlackClock "0:00:01"]

1. e4 {[%clk 0:03:00]}  c5 {[%clk 0:02:36]} 2. Nf3 {[%clk 0:03:00]}  d6 {[%clk 0:02:32]} 3. Bc4 {[%clk 0:02:59]}  Nf6 {[%clk 0:02:29]} 4. d3 {[%clk 0:02:59]}  Nc6 {[%clk 0:02:24]} 5. O-O {[%clk 0:02:58]}  a6 {[%clk 0:02:21]} 6. h3 {[%clk 0:02:56]}  b5 {[%clk 0:02:20]} 7. Bb3 {[%clk 0:02:57]}  e6 {[%clk 0:02:19]} 8. c3 {[%clk 0:02:54]}  Be7 {[%clk 0:02:12]} 9. Re1 {[%clk 0:02:54]}  O-O {[%clk 0:02:11]} 10. Nbd2 {[%clk 0:02:53]}  Bb7 {[%clk 0:02:07]} 11. Nf1 {[%clk 0:02:53]}  Rc8 {[%clk 0:01:59]} 12. Ng3 {[%clk 0:02:52]}  Re8 {[%clk 0:01:57]} 13. Be3 {[%clk 0:02:44]}  d5 {[%clk 0:01:51]} 14. e5 {[%clk 0:02:43]}  Nd7 {[%clk 0:01:51]} 15. d4 {[%clk 0:02:43]}  f6 {[%clk 0:01:49]} 16. exf6 {[%clk 0:02:40]}  Bxf6 {[%clk 0:01:48]} 17. Nh5 {[%clk 0:02:33]}  cxd4 {[%clk 0:01:46]} 18. cxd4 {[%clk 0:02:16]}  Be7 {[%clk 0:01:28]} 19. Bf4 {[%clk 0:02:07]}  Nf8 {[%clk 0:01:27]} 20. Bg3 {[%clk 0:02:01]}  Bd6 {[%clk 0:01:20]} 21. Nf4 {[%clk 0:01:54]}  Qf6 {[%clk 0:01:17]} 22. Nh5 {[%clk 0:01:54]}  Qd8 {[%clk 0:01:13]} 23. Qd2 {[%clk 0:01:47]}  Bxg3 {[%clk 0:01:13]} 24. Nxg3 {[%clk 0:01:48]}  Na5 {[%clk 0:01:07]} 25. Re2 {[%clk 0:01:44]}  Nc4 {[%clk 0:01:01]} 26. Qd3 {[%clk 0:01:44]}  Ng6 {[%clk 0:00:59]} 27. Nh5 {[%clk 0:01:39]}  Nh4 {[%clk 0:00:47]} 28. Rae1 {[%clk 0:01:34]}  Nxf3+ {[%clk 0:00:42]} 29. Qxf3 {[%clk 0:01:34]}  Qg5 {[%clk 0:00:43]} 30. Nf4 {[%clk 0:01:16]}  e5 {[%clk 0:00:35]} 31. dxe5 {[%clk 0:01:14]}  Kh8 {[%clk 0:00:19]} 32. e6 {[%clk 0:01:09]}  Bc6 {[%clk 0:00:18]} 33. Qg4 {[%clk 0:01:00]}  Qf6 {[%clk 0:00:13]} 34. e7 {[%clk 0:00:59]}  Rc7 {[%clk 0:00:04]} 35. Bc2 {[%clk 0:00:32]}  g6 {[%clk 0:00:03]} 36. Re6 {[%clk 0:00:27]}  Qf7 {[%clk 0:00:02]} 37. Nxg6+ {[%clk 0:00:27]}  hxg6 {[%clk 0:00:02]} 38. Bxg6 {[%clk 0:00:27]}  Qg7 {[%clk 0:00:01]} 39. Qh5+ {[%clk 0:00:27]}  Kg8 {[%clk 0:00:01]} 40. Bxe8 {[%clk 0:00:27]}  Bxe8 {[%clk 0:00:01]} 41. Qxe8+ {[%clk 0:00:27]}  Kh7 {[%clk 0:00:01]} 42. Qh5+ {[%clk 0:00:27]}  Kg8 {[%clk 0:00:01]} 43. e8=Q+ {[%clk 0:00:28]} 1-0


[Site "https://www.chess.com"]

[Event "Titled Tuesday Blitz May 24 Early 2022"]
[White "Toncheva, Nadya"]
[Black "Sargsyan, Anna M."]
[WhiteFideId "2924056"]
[BlackFideId "13308130"]
[WhiteElo "1888"]
[BlackElo "2271"]
[Result "0-1"]
[Round "11"]
[TimeControl "180+1"]
[Date "2022.05.25"]
[WhiteClock "0:00:11"]
[BlackClock "0:00:07"]

1. d4 {[%clk 0:03:00]}  d5 {[%clk 0:02:58]} 2. c4 {[%clk 0:03:01]}  c6 {[%clk 0:02:58]} 3. Nc3 {[%clk 0:03:01]}  Nf6 {[%clk 0:02:59]} 4. e3 {[%clk 0:03:02]}  e6 {[%clk 0:02:57]} 5. Nf3 {[%clk 0:03:02]}  Nbd7 {[%clk 0:02:57]} 6. Bd3 {[%clk 0:03:03]}  dxc4 {[%clk 0:02:57]} 7. Bxc4 {[%clk 0:03:04]}  Bd6 {[%clk 0:02:55]} 8. O-O {[%clk 0:03:03]}  O-O {[%clk 0:02:53]} 9. Qe2 {[%clk 0:03:02]}  e5 {[%clk 0:02:50]} 10. dxe5 {[%clk 0:03:00]}  Nxe5 {[%clk 0:02:50]} 11. Nxe5 {[%clk 0:03:00]}  Bxe5 {[%clk 0:02:51]} 12. Rd1 {[%clk 0:02:59]}  Qe7 {[%clk 0:02:51]} 13. Bd2 {[%clk 0:02:40]}  Bxh2+ {[%clk 0:02:15]} 14. Kxh2 {[%clk 0:02:39]}  Ng4+ {[%clk 0:02:16]} 15. Kg1 {[%clk 0:02:24]}  Qh4 {[%clk 0:02:16]} 16. Qf3 {[%clk 0:02:24]}  Ne5 {[%clk 0:02:13]} 17. Qe4 {[%clk 0:02:12]}  Qxe4 {[%clk 0:02:09]} 18. Nxe4 {[%clk 0:02:13]}  Nxc4 {[%clk 0:02:10]} 19. Bc3 {[%clk 0:02:13]}  Bf5 {[%clk 0:01:52]} 20. Nd6 {[%clk 0:01:45]}  Nxd6 {[%clk 0:01:51]} 21. Rxd6 {[%clk 0:01:46]}  Be6 {[%clk 0:01:47]} 22. a3 {[%clk 0:01:43]}  h6 {[%clk 0:01:37]} 23. Rad1 {[%clk 0:01:41]}  c5 {[%clk 0:01:32]} 24. e4 {[%clk 0:01:25]}  g5 {[%clk 0:01:31]} 25. f3 {[%clk 0:01:19]}  b5 {[%clk 0:01:23]} 26. Kf2 {[%clk 0:01:15]}  Kh7 {[%clk 0:01:24]} 27. Rc6 {[%clk 0:00:38]}  Rfc8 {[%clk 0:01:21]} 28. Rdd6 {[%clk 0:00:36]}  Kg8 {[%clk 0:00:17]} 29. Ke3 {[%clk 0:00:34]}  Rab8 {[%clk 0:00:14]} 30. Ra6 {[%clk 0:00:33]}  b4 {[%clk 0:00:14]} 31. axb4 {[%clk 0:00:32]}  cxb4 {[%clk 0:00:15]} 32. Bd4 {[%clk 0:00:31]}  Rc2 {[%clk 0:00:12]} 33. g3 {[%clk 0:00:28]}  Bc4 {[%clk 0:00:11]} 34. f4 {[%clk 0:00:27]}  g4 {[%clk 0:00:09]} 35. Bxa7 {[%clk 0:00:26]}  Re8 {[%clk 0:00:04]} 36. Rab6 {[%clk 0:00:18]}  Re2+ {[%clk 0:00:04]} 37. Kd4 {[%clk 0:00:18]}  R2xe4+ {[%clk 0:00:05]} 38. Kc5 {[%clk 0:00:17]}  Be6 {[%clk 0:00:05]} 39. Rb8 {[%clk 0:00:14]}  Rxb8 {[%clk 0:00:05]} 40. Bxb8 {[%clk 0:00:14]}  b3 {[%clk 0:00:06]} 41. Rd8+ {[%clk 0:00:14]}  Kh7 {[%clk 0:00:06]} 42. Be5 {[%clk 0:00:14]}  Re3 {[%clk 0:00:05]} 43. Rh8+ {[%clk 0:00:14]}  Kg6 {[%clk 0:00:06]} 44. Rg8+ {[%clk 0:00:14]}  Kf5 {[%clk 0:00:06]} 45. Rh8 {[%clk 0:00:11]}  Rxg3 {[%clk 0:00:07]} 46. Rxh6 {[%clk 0:00:11]}  Rh3 {[%clk 0:00:07]} 47. Kd4 {[%clk 0:00:11]}  Rxh6 {[%clk 0:00:07]} 0-1


[Site "https://www.chess.com"]

[Event "Titled Tuesday Blitz May 24 Early 2022"]
[White "Vainio, Ville"]
[Black "Odegov, Artem"]
[WhiteFideId "507270"]
[BlackFideId "34183644"]
[WhiteElo "2222"]
[BlackElo "2286"]
[Result "1/2-1/2"]
[Round "11"]
[TimeControl "180+1"]
[Date "2022.05.25"]
[WhiteClock "0:00:22"]
[BlackClock "0:00:48"]

1. e4 {[%clk 0:03:00]}  Nf6 {[%clk 0:02:56]} 2. e5 {[%clk 0:03:00]}  Nd5 {[%clk 0:02:51]} 3. d4 {[%clk 0:03:00]}  d6 {[%clk 0:02:50]} 4. Nf3 {[%clk 0:03:01]}  g6 {[%clk 0:02:48]} 5. Bc4 {[%clk 0:02:59]}  Nb6 {[%clk 0:02:47]} 6. Bb3 {[%clk 0:03:00]}  Bg7 {[%clk 0:02:46]} 7. a4 {[%clk 0:03:00]}  a5 {[%clk 0:02:44]} 8. Bf4 {[%clk 0:02:52]}  O-O {[%clk 0:02:42]} 9. O-O {[%clk 0:02:51]}  Nc6 {[%clk 0:02:40]} 10. exd6 {[%clk 0:02:37]}  exd6 {[%clk 0:02:39]} 11. h3 {[%clk 0:02:26]}  Bf5 {[%clk 0:02:37]} 12. c3 {[%clk 0:02:17]}  Qd7 {[%clk 0:02:33]} 13. Re1 {[%clk 0:02:02]}  Rae8 {[%clk 0:02:30]} 14. Nbd2 {[%clk 0:01:58]}  Rxe1+ {[%clk 0:02:22]} 15. Qxe1 {[%clk 0:01:58]}  Re8 {[%clk 0:02:23]} 16. Qc1 {[%clk 0:01:54]}  Be6 {[%clk 0:02:22]} 17. Bxe6 {[%clk 0:01:43]}  Qxe6 {[%clk 0:02:23]} 18. Nf1 {[%clk 0:01:37]}  Nd5 {[%clk 0:02:08]} 19. Bh6 {[%clk 0:01:29]}  Nf6 {[%clk 0:01:55]} 20. Bxg7 {[%clk 0:01:14]}  Kxg7 {[%clk 0:01:56]} 21. Qc2 {[%clk 0:01:07]}  Qe2 {[%clk 0:01:52]} 22. Rc1 {[%clk 0:01:01]}  Qxc2 {[%clk 0:01:47]} 23. Rxc2 {[%clk 0:00:59]}  Ne7 {[%clk 0:01:47]} 24. Re2 {[%clk 0:00:52]}  Ned5 {[%clk 0:01:42]} 25. Rxe8 {[%clk 0:00:50]}  Nxe8 {[%clk 0:01:43]} 26. Ne3 {[%clk 0:00:46]}  Nxe3 {[%clk 0:01:38]} 27. fxe3 {[%clk 0:00:47]}  h6 {[%clk 0:01:37]} 28. Kf2 {[%clk 0:00:45]}  f5 {[%clk 0:01:35]} 29. Nd2 {[%clk 0:00:40]}  Nf6 {[%clk 0:01:32]} 30. Kf3 {[%clk 0:00:40]}  Kf7 {[%clk 0:01:26]} 31. e4 {[%clk 0:00:39]}  fxe4+ {[%clk 0:01:13]} 32. Nxe4 {[%clk 0:00:40]}  Nxe4 {[%clk 0:01:14]} 33. Kxe4 {[%clk 0:00:39]}  Ke6 {[%clk 0:01:15]} 34. d5+ {[%clk 0:00:33]}  Kf6 {[%clk 0:01:14]} 35. Kf4 {[%clk 0:00:29]}  g5+ {[%clk 0:01:13]} 36. Ke4 {[%clk 0:00:28]}  h5 {[%clk 0:01:12]} 37. g4 {[%clk 0:00:26]}  hxg4 {[%clk 0:01:09]} 38. hxg4 {[%clk 0:00:25]}  c6 {[%clk 0:00:59]} 39. c4 {[%clk 0:00:23]}  c5 {[%clk 0:00:55]} 40. b3 {[%clk 0:00:21]}  b6 {[%clk 0:00:51]} 41. Kf3 {[%clk 0:00:21]}  Ke5 {[%clk 0:00:49]} 42. Ke3 {[%clk 0:00:22]}  Kf6 {[%clk 0:00:49]} 43. Ke4 {[%clk 0:00:22]}  Kg6 {[%clk 0:00:49]} 44. Kf3 {[%clk 0:00:20]}  Kf7 {[%clk 0:00:48]} 45. Ke4 {[%clk 0:00:21]}  Kf6 {[%clk 0:00:48]} 46. Kf3 {[%clk 0:00:22]}  Kg6 {[%clk 0:00:48]} 47. Ke4 {[%clk 0:00:22]}  Kf6 {[%clk 0:00:48]} 1/2-1/2


[Site "https://www.chess.com"]

[Event "Titled Tuesday Blitz May 24 Early 2022"]
[White "Wagner, Dennis"]
[Black "Vasquez Schroeder, Rodrigo"]
[WhiteFideId "24650684"]
[BlackFideId "3400042"]
[WhiteElo "2355"]
[BlackElo "2567"]
[Result "1-0"]
[Round "11"]
[TimeControl "180+1"]
[Date "2022.05.24"]
[WhiteClock "0:00:12"]
[BlackClock "0:00:08"]

1. e4 {[%clk 0:03:00]}  c5 {[%clk 0:02:59]} 2. c3 {[%clk 0:03:00]}  Nf6 {[%clk 0:02:59]} 3. e5 {[%clk 0:03:00]}  Nd5 {[%clk 0:02:59]} 4. Nf3 {[%clk 0:03:00]}  d6 {[%clk 0:02:59]} 5. exd6 {[%clk 0:02:59]}  Qxd6 {[%clk 0:02:59]} 6. d4 {[%clk 0:02:55]}  cxd4 {[%clk 0:02:57]} 7. Qxd4 {[%clk 0:02:46]}  Nc6 {[%clk 0:02:56]} 8. Bb5 {[%clk 0:02:46]}  Bd7 {[%clk 0:02:57]} 9. Bxc6 {[%clk 0:02:46]}  Bxc6 {[%clk 0:02:53]} 10. Ne5 {[%clk 0:02:44]}  f6 {[%clk 0:02:50]} 11. Nxc6 {[%clk 0:02:43]}  Qxc6 {[%clk 0:02:51]} 12. O-O {[%clk 0:02:40]}  e5 {[%clk 0:02:51]} 13. Qg4 {[%clk 0:02:36]}  Bc5 {[%clk 0:02:43]} 14. Qxg7 {[%clk 0:02:30]}  O-O-O {[%clk 0:02:43]} 15. Qg4+ {[%clk 0:02:26]}  Kb8 {[%clk 0:02:42]} 16. Qf3 {[%clk 0:02:21]}  Rhg8 {[%clk 0:02:37]} 17. c4 {[%clk 0:01:38]}  Nf4 {[%clk 0:02:04]} 18. Qxc6 {[%clk 0:01:35]}  Ne2+ {[%clk 0:02:05]} 19. Kh1 {[%clk 0:01:35]}  bxc6 {[%clk 0:02:06]} 20. Be3 {[%clk 0:01:28]}  Bxe3 {[%clk 0:01:46]} 21. fxe3 {[%clk 0:01:29]}  Rd3 {[%clk 0:01:46]} 22. Re1 {[%clk 0:01:16]}  Rgd8 {[%clk 0:01:19]} 23. Na3 {[%clk 0:00:40]}  Rd2 {[%clk 0:01:18]} 24. c5 {[%clk 0:00:29]}  Rxb2 {[%clk 0:01:08]} 25. Nc4 {[%clk 0:00:29]}  Rc2 {[%clk 0:01:08]} 26. Rab1+ {[%clk 0:00:25]}  Kc7 {[%clk 0:01:06]} 27. Nd6 {[%clk 0:00:26]}  Rb8 {[%clk 0:01:00]} 28. Rxb8 {[%clk 0:00:24]}  Kxb8 {[%clk 0:00:59]} 29. Rb1+ {[%clk 0:00:21]}  Ka8 {[%clk 0:00:58]} 30. Ne8 {[%clk 0:00:17]}  a5 {[%clk 0:00:50]} 31. Nxf6 {[%clk 0:00:17]}  Nc3 {[%clk 0:00:45]} 32. Rf1 {[%clk 0:00:16]}  Nxa2 {[%clk 0:00:44]} 33. Nxh7 {[%clk 0:00:16]}  Rc1 {[%clk 0:00:40]} 34. Kg1 {[%clk 0:00:11]}  a4 {[%clk 0:00:40]} 35. Nf6 {[%clk 0:00:09]}  a3 {[%clk 0:00:39]} 36. Ne4 {[%clk 0:00:09]}  Rc4 {[%clk 0:00:36]} 37. Ra1 {[%clk 0:00:07]}  Rc1+ {[%clk 0:00:35]} 38. Rxc1 {[%clk 0:00:07]}  Nxc1 {[%clk 0:00:35]} 39. Nc3 {[%clk 0:00:07]}  a2 {[%clk 0:00:36]} 40. Nxa2 {[%clk 0:00:07]}  Nxa2 {[%clk 0:00:37]} 41. h4 {[%clk 0:00:08]}  Nc3 {[%clk 0:00:37]} 42. h5 {[%clk 0:00:08]}  Ne4 {[%clk 0:00:38]} 43. h6 {[%clk 0:00:09]}  Ng5 {[%clk 0:00:35]} 44. Kf2 {[%clk 0:00:09]}  Kb7 {[%clk 0:00:35]} 45. Kg3 {[%clk 0:00:10]}  Kc7 {[%clk 0:00:29]} 46. Kg4 {[%clk 0:00:10]}  Nf7 {[%clk 0:00:27]} 47. h7 {[%clk 0:00:11]}  Kd7 {[%clk 0:00:28]} 48. Kf5 {[%clk 0:00:11]}  Ke7 {[%clk 0:00:28]} 49. Kg6 {[%clk 0:00:10]}  Ke6 {[%clk 0:00:15]} 50. g4 {[%clk 0:00:10]}  Ke7 {[%clk 0:00:12]} 51. Kg7 {[%clk 0:00:11]}  e4 {[%clk 0:00:11]} 52. g5 {[%clk 0:00:11]}  Ke6 {[%clk 0:00:08]} 53. g6 {[%clk 0:00:12]} 1-0


[Site "https://www.chess.com"]